[Event "Live Chess"]
[Site "Chess.com"]
[Date "2023.05.21"]
[Round "-"]
[White "raminguy"]
[Black "chessfiction"]
[Result "1/2-1/2"]
[WhiteElo "1931"]
[BlackElo "2297"]
[TimeControl "300"]
[EndTime "8:50:32 PDT"]
[Termination "Game drawn by agreement"]

1. d4 {[%clk 0:04:59.4]} 1... d5 {[%clk 0:04:56]} 2. c4 {[%clk 0:04:57.9]} 2...
Nf6 {[%clk 0:04:52]} 3. Nc3 {[%clk 0:04:54.5]} 3... c6 {[%clk 0:04:50.7]} 4. Bg5
{[%clk 0:04:53.4]} 4... e6 {[%clk 0:04:49.2]} 5. Nf3 {[%clk 0:04:52.2]} 5...
Nbd7 {[%clk 0:04:48.3]} 6. e4 {[%clk 0:04:49.6]} 6... dxe4 {[%clk 0:04:47.1]} 7.
Nxe4 {[%clk 0:04:48.7]} 7... Bb4+ {[%clk 0:04:43.1]} 8. Nc3 {[%clk 0:04:45.5]}
8... O-O {[%clk 0:04:38.8]} 9. Qc2 {[%clk 0:04:43.4]} 9... Qa5 {[%clk
0:04:34.9]} 10. Bd3 {[%clk 0:04:39.8]} 10... e5 {[%clk 0:04:32.7]} 11. O-O
{[%clk 0:04:30.2]} 11... Bxc3 {[%clk 0:04:29.7]} 12. bxc3 {[%clk 0:04:28.3]}
12... exd4 {[%clk 0:04:01.8]} 13. cxd4 {[%clk 0:04:25.8]} 13... h6 {[%clk
0:04:00.7]} 14. Bh4 {[%clk 0:04:22.7]} 14... Qh5 {[%clk 0:03:54.6]} 15. Rfe1
{[%clk 0:04:11.5]} 15... b6 {[%clk 0:03:29.6]} 16. Qe2 {[%clk 0:04:00.2]} 16...
Ba6 {[%clk 0:03:26.5]} 17. a4 {[%clk 0:03:52.4]} 17... Rfe8 {[%clk 0:03:07.7]}
18. Qc2 {[%clk 0:03:43.1]} 18... Rxe1+ {[%clk 0:02:28.9]} 19. Rxe1 {[%clk
0:03:40.5]} 19... c5 {[%clk 0:01:21.4]} 20. d5 {[%clk 0:03:25.9]} 20... Re8
{[%clk 0:01:04]} 21. Rxe8+ {[%clk 0:03:17.3]} 21... Nxe8 {[%clk 0:01:03.9]} 22.
Qe2 {[%clk 0:03:16]} 22... Nef6 {[%clk 0:00:55.3]} 23. h3 {[%clk 0:03:08]} 23...
g5 {[%clk 0:00:48.9]} 24. Bg3 {[%clk 0:02:56]} 24... g4 {[%clk 0:00:47.1]} 25.
hxg4 {[%clk 0:02:45]} 25... Qxg4 {[%clk 0:00:34.3]} 26. Nd2 {[%clk 0:01:39.3]}
26... Qxe2 {[%clk 0:00:28.3]} 27. Bxe2 {[%clk 0:01:38.1]} 27... Nxd5 {[%clk
0:00:28.2]} 28. Bg4 {[%clk 0:01:32.6]} 28... N7f6 {[%clk 0:00:22.8]} 29. Bh3
{[%clk 0:01:16.2]} 29... Nc3 {[%clk 0:00:19.7]} 30. Bb8 {[%clk 0:01:13.5]} 30...
Ne2+ {[%clk 0:00:18.1]} 31. Kh2 {[%clk 0:01:12]} 31... Nf4 {[%clk 0:00:17.9]}
32. Bxa7 {[%clk 0:01:10.4]} 32... Nxh3 {[%clk 0:00:16.3]} 33. Kxh3 {[%clk
0:01:08.3]} 33... Nd7 {[%clk 0:00:16.2]} 34. Ne4 {[%clk 0:01:05.4]} 34... Kg7
{[%clk 0:00:14.9]} 35. Nd6 {[%clk 0:01:03.9]} 35... Ne5 {[%clk 0:00:14.4]} 36.
Bxb6 {[%clk 0:00:58.5]} 36... Nxc4 {[%clk 0:00:14.3]} 37. Nxc4 {[%clk
0:00:56.7]} 37... Bxc4 {[%clk 0:00:14.2]} 38. Bxc5 {[%clk 0:00:56.2]} 38... Ba6
{[%clk 0:00:14.1]} 39. a5 {[%clk 0:00:54.7]} 39... Bc4 {[%clk 0:00:14]} 40. g3
{[%clk 0:00:53.1]} 40... Ba6 {[%clk 0:00:13.9]} 41. f4 {[%clk 0:00:52.5]} 41...
Bb5 {[%clk 0:00:13.8]} 42. Kh4 {[%clk 0:00:45.1]} 1/2-1/2

[Event "Live Chess"]
[Site "Chess.com"]
[Date "2023.05.21"]
[Round "-"]
[White "Pablo_dmp"]
[Black "JohanKjeldahl"]
[Result "0-1"]
[WhiteElo "1830"]
[BlackElo "1878"]
[TimeControl "300"]
[EndTime "8:50:34 PDT"]
[Termination "JohanKjeldahl won by checkmate"]

1. e4 {[%clk 0:04:58.7]} 1... c5 {[%clk 0:04:58]} 2. a3 {[%clk 0:04:56.8]} 2...
e6 {[%clk 0:04:54.7]} 3. b4 {[%clk 0:04:51.2]} 3... cxb4 {[%clk 0:04:53.7]} 4.
axb4 {[%clk 0:04:51.1]} 4... Bxb4 {[%clk 0:04:52]} 5. c3 {[%clk 0:04:50.8]} 5...
Be7 {[%clk 0:04:48.7]} 6. d4 {[%clk 0:04:50.5]} 6... d5 {[%clk 0:04:46.1]} 7.
Bd3 {[%clk 0:04:46.9]} 7... Nc6 {[%clk 0:04:43.7]} 8. Nd2 {[%clk 0:04:40.7]}
8... dxe4 {[%clk 0:04:40.4]} 9. Nxe4 {[%clk 0:04:40.6]} 9... Nf6 {[%clk
0:04:39.4]} 10. Nf3 {[%clk 0:04:33.8]} 10... O-O {[%clk 0:04:36.4]} 11. Qc2
{[%clk 0:04:29.8]} 11... h6 {[%clk 0:04:35.1]} 12. O-O {[%clk 0:04:25]} 12... b6
{[%clk 0:04:30.8]} 13. Ng3 {[%clk 0:04:10.8]} 13... Bb7 {[%clk 0:04:29.4]} 14.
Bf4 {[%clk 0:04:04.7]} 14... Nd5 {[%clk 0:04:25.6]} 15. Bd2 {[%clk 0:03:59.9]}
15... Rc8 {[%clk 0:04:20.6]} 16. Be4 {[%clk 0:03:53.5]} 16... Bf6 {[%clk
0:04:04.4]} 17. Qd3 {[%clk 0:03:46]} 17... a5 {[%clk 0:03:44.3]} 18. Rfd1 {[%clk
0:03:24.3]} 18... Nb8 {[%clk 0:03:31.5]} 19. c4 {[%clk 0:03:18.8]} 19... Ba6
{[%clk 0:03:25.4]} 20. Ne5 {[%clk 0:02:49.7]} 20... Bxe5 {[%clk 0:03:21.8]} 21.
dxe5 {[%clk 0:02:47.9]} 21... Bxc4 {[%clk 0:03:19.3]} 22. Qf3 {[%clk 0:02:37.1]}
22... Nc6 {[%clk 0:03:07.6]} 23. Rac1 {[%clk 0:02:23.6]} 23... Nxe5 {[%clk
0:03:03.8]} 24. Qh5 {[%clk 0:02:17.5]} 24... Qf6 {[%clk 0:02:51]} 25. Bxd5
{[%clk 0:02:13.3]} 25... Bxd5 {[%clk 0:02:46.7]} 26. Bc3 {[%clk 0:02:07.7]}
26... Rxc3 {[%clk 0:02:37.1]} 27. Rxc3 {[%clk 0:02:07.6]} 27... Ng4 {[%clk
0:02:09.8]} 28. Rc2 {[%clk 0:01:01.6]} 28... Bb3 {[%clk 0:02:07.3]} 29. Qxg4
{[%clk 0:00:56.4]} 29... Bxc2 {[%clk 0:02:04.4]} 30. Rc1 {[%clk 0:00:52.3]}
30... Bf5 {[%clk 0:02:00.3]} 31. Qf3 {[%clk 0:00:46.6]} 31... Qb2 {[%clk
0:01:53.5]} 32. Rd1 {[%clk 0:00:40.8]} 32... Rc8 {[%clk 0:01:50]} 33. Nxf5
{[%clk 0:00:31.3]} 33... exf5 {[%clk 0:01:47.7]} 34. h3 {[%clk 0:00:28.1]} 34...
Rc1 {[%clk 0:01:44.5]} 35. Qa8+ {[%clk 0:00:18.1]} 35... Kh7 {[%clk 0:01:41.6]}
36. Rxc1 {[%clk 0:00:18]} 36... Qxc1+ {[%clk 0:01:39.8]} 37. Kh2 {[%clk
0:00:17.9]} 37... Qc7+ {[%clk 0:01:36.7]} 38. g3 {[%clk 0:00:16.4]} 38... g6
{[%clk 0:01:35.6]} 39. Kg2 {[%clk 0:00:15.1]} 39... Qc4 {[%clk 0:01:31.3]} 40.
Qe8 {[%clk 0:00:13.3]} 40... a4 {[%clk 0:01:28.1]} 41. Qe1 {[%clk 0:00:13.2]}
41... Qe4+ {[%clk 0:01:24]} 42. Qxe4 {[%clk 0:00:11.8]} 42... fxe4 {[%clk
0:01:23.1]} 43. Kf1 {[%clk 0:00:11.7]} 43... a3 {[%clk 0:01:21.8]} 44. g4 {[%clk
0:00:11.2]} 44... a2 {[%clk 0:01:20.5]} 45. h4 {[%clk 0:00:11.1]} 45... a1=Q+
{[%clk 0:01:19.3]} 46. Kg2 {[%clk 0:00:10.8]} 46... f5 {[%clk 0:01:16.1]} 47. h5
{[%clk 0:00:10.7]} 47... gxh5 {[%clk 0:01:13.3]} 48. Kh2 {[%clk 0:00:10.6]}
48... Qf1 {[%clk 0:01:10.2]} 49. f3 {[%clk 0:00:10.5]} 49... exf3 {[%clk
0:01:07.6]} 50. g5 {[%clk 0:00:10.4]} 50... Qg2# {[%clk 0:01:06.3]} 0-1

[Event "Live Chess"]
[Site "Chess.com"]
[Date "2023.05.21"]
[Round "-"]
[White "FlyingChessKestrel13"]
[Black "SupremeTactician"]
[Result "1-0"]
[WhiteElo "2083"]
[BlackElo "2155"]
[TimeControl "300"]
[EndTime "8:50:38 PDT"]
[Termination "FlyingChessKestrel13 won by checkmate"]

1. e4 {[%clk 0:04:57.6]} 1... e5 {[%clk 0:04:58.8]} 2. Nf3 {[%clk 0:04:53.1]}
2... Nc6 {[%clk 0:04:58.1]} 3. d4 {[%clk 0:04:51.7]} 3... exd4 {[%clk
0:04:57.4]} 4. Nxd4 {[%clk 0:04:51.2]} 4... Nf6 {[%clk 0:04:56.7]} 5. Nc3 {[%clk
0:04:49.2]} 5... Bb4 {[%clk 0:04:55.6]} 6. Nxc6 {[%clk 0:04:48.1]} 6... bxc6
{[%clk 0:04:55.3]} 7. Bd3 {[%clk 0:04:46.7]} 7... d5 {[%clk 0:04:53.4]} 8. e5
{[%clk 0:04:45.2]} 8... Nd7 {[%clk 0:04:51]} 9. O-O {[%clk 0:04:44.3]} 9... O-O
{[%clk 0:04:49.9]} 10. f4 {[%clk 0:04:42.5]} 10... d4 {[%clk 0:04:49.2]} 11. Ne4
{[%clk 0:04:41.1]} 11... Be7 {[%clk 0:04:47.9]} 12. Qf3 {[%clk 0:04:35.2]} 12...
Rb8 {[%clk 0:04:45.3]} 13. Qg3 {[%clk 0:04:33.7]} 13... f5 {[%clk 0:04:41.8]}
14. Ng5 {[%clk 0:04:19.2]} 14... Bxg5 {[%clk 0:04:37.9]} 15. fxg5 {[%clk
0:04:18.3]} 15... c5 {[%clk 0:04:34]} 16. Bxf5 {[%clk 0:04:15.1]} 16... Nb6
{[%clk 0:04:28.6]} 17. e6 {[%clk 0:04:10.6]} 17... Rxf5 {[%clk 0:04:05.5]} 18.
Rxf5 {[%clk 0:04:07.8]} 18... Bxe6 {[%clk 0:04:05.4]} 19. Rf1 {[%clk 0:04:05.9]}
19... c4 {[%clk 0:04:03.5]} 20. Bf4 {[%clk 0:04:05.4]} 20... Nd5 {[%clk
0:04:02.1]} 21. Be5 {[%clk 0:04:02.5]} 21... Rxb2 {[%clk 0:04:00.5]} 22. Bxd4
{[%clk 0:04:00.7]} 22... Rxc2 {[%clk 0:03:59.9]} 23. Qe5 {[%clk 0:03:58.1]}
23... Qd7 {[%clk 0:03:58.1]} 24. Rae1 {[%clk 0:03:55.5]} 24... Bf7 {[%clk
0:03:56]} 25. Qxg7# {[%clk 0:03:52.9]} 1-0

[Event "Live Chess"]
[Site "Chess.com"]
[Date "2023.05.21"]
[Round "-"]
[White "Rusty_Bridges"]
[Black "manthanit"]
[Result "1-0"]
[WhiteElo "1528"]
[BlackElo "1112"]
[TimeControl "300"]
[EndTime "8:50:42 PDT"]
[Termination "Rusty_Bridges won by checkmate"]

1. e4 {[%clk 0:04:58]} 1... e6 {[%clk 0:04:59.2]} 2. d4 {[%clk 0:04:56]} 2... d5
{[%clk 0:04:58.7]} 3. exd5 {[%clk 0:04:54.7]} 3... exd5 {[%clk 0:04:58.1]} 4.
Nf3 {[%clk 0:04:53.9]} 4... Nf6 {[%clk 0:04:56.9]} 5. Bd3 {[%clk 0:04:53.3]}
5... h6 {[%clk 0:04:51.4]} 6. c3 {[%clk 0:04:52.2]} 6... a6 {[%clk 0:04:47.2]}
7. O-O {[%clk 0:04:51.1]} 7... Be7 {[%clk 0:04:45.5]} 8. Re1 {[%clk 0:04:50.1]}
8... O-O {[%clk 0:04:44.6]} 9. Bf4 {[%clk 0:04:46.6]} 9... Re8 {[%clk
0:04:36.3]} 10. Nbd2 {[%clk 0:04:43.5]} 10... Bd6 {[%clk 0:04:30.3]} 11. Bxd6
{[%clk 0:04:40]} 11... Rxe1+ {[%clk 0:04:26.6]} 12. Qxe1 {[%clk 0:04:38.4]}
12... Qxd6 {[%clk 0:04:26.1]} 13. Ne5 {[%clk 0:04:35.5]} 13... Be6 {[%clk
0:04:12.8]} 14. Ndf3 {[%clk 0:04:25.8]} 14... Nbd7 {[%clk 0:04:10.3]} 15. h3
{[%clk 0:04:15.4]} 15... Re8 {[%clk 0:04:08.3]} 16. Qd2 {[%clk 0:04:12.2]} 16...
c5 {[%clk 0:04:04.3]} 17. Re1 {[%clk 0:04:07.7]} 17... cxd4 {[%clk 0:03:59]} 18.
cxd4 {[%clk 0:04:06.1]} 18... b5 {[%clk 0:03:53.4]} 19. Rc1 {[%clk 0:04:00.7]}
19... Qb8 {[%clk 0:03:33]} 20. Rc6 {[%clk 0:03:35]} 20... Nxe5 {[%clk
0:03:27.9]} 21. Nxe5 {[%clk 0:03:32.9]} 21... Qa7 {[%clk 0:03:13.4]} 22. a4
{[%clk 0:03:28.7]} 22... Qxd4 {[%clk 0:03:08.6]} 23. Nf3 {[%clk 0:02:53.1]}
23... Qxa4 {[%clk 0:02:52.5]} 24. Nd4 {[%clk 0:02:36.8]} 24... Qa1+ {[%clk
0:02:45.5]} 25. Kh2 {[%clk 0:02:35]} 25... Ne4 {[%clk 0:02:31.6]} 26. Bxe4
{[%clk 0:02:29.1]} 26... dxe4 {[%clk 0:02:30.7]} 27. Qe2 {[%clk 0:02:06.3]}
27... Bd5 {[%clk 0:02:17.6]} 28. Rd6 {[%clk 0:01:58.3]} 28... Bc4 {[%clk
0:02:14.6]} 29. Qh5 {[%clk 0:01:43.3]} 29... Qxb2 {[%clk 0:02:10]} 30. Nf5
{[%clk 0:01:35]} 30... Qe5+ {[%clk 0:02:03.5]} 31. g3 {[%clk 0:01:27.6]} 31...
Kh7 {[%clk 0:01:34]} 32. Rxh6+ {[%clk 0:01:13.8]} 32... gxh6 {[%clk 0:01:32.6]}
33. Qxh6+ {[%clk 0:01:12.8]} 33... Kg8 {[%clk 0:01:26.6]} 34. Qg5+ {[%clk
0:01:03.2]} 34... Kh7 {[%clk 0:00:59]} 35. Qh6+ {[%clk 0:01:00.2]} 35... Kg8
{[%clk 0:00:53.5]} 36. Qg5+ {[%clk 0:00:58.5]} 36... Kf8 {[%clk 0:00:18.9]} 37.
Qh6+ {[%clk 0:00:57]} 37... Qg7 {[%clk 0:00:12.1]} 38. Qxg7# {[%clk 0:00:54.8]}
1-0

[Event "Live Chess"]
[Site "Chess.com"]
[Date "2023.05.21"]
[Round "-"]
[White "LiamBellwood"]
[Black "GEMdzq"]
[Result "0-1"]
[WhiteElo "1927"]
[BlackElo "2220"]
[TimeControl "300"]
[EndTime "8:50:43 PDT"]
[Termination "GEMdzq won by resignation"]

1. d4 {[%clk 0:04:59.3]} 1... Nf6 {[%clk 0:04:58.5]} 2. Nc3 {[%clk 0:04:59]}
2... e6 {[%clk 0:04:57.9]} 3. Bf4 {[%clk 0:04:58.7]} 3... c5 {[%clk 0:04:56.8]}
4. d5 {[%clk 0:04:56.9]} 4... exd5 {[%clk 0:04:51.3]} 5. Nxd5 {[%clk 0:04:56.8]}
5... Nxd5 {[%clk 0:04:49.8]} 6. Qxd5 {[%clk 0:04:56.7]} 6... Nc6 {[%clk
0:04:49]} 7. O-O-O {[%clk 0:04:54.3]} 7... Be7 {[%clk 0:04:30.8]} 8. e3 {[%clk
0:04:41.5]} 8... O-O {[%clk 0:04:28.1]} 9. Nf3 {[%clk 0:04:36.8]} 9... d6 {[%clk
0:04:24.2]} 10. Kb1 {[%clk 0:04:29.1]} 10... Be6 {[%clk 0:04:22.3]} 11. Qd2
{[%clk 0:04:23.8]} 11... Qb6 {[%clk 0:04:18]} 12. Ng5 {[%clk 0:04:08.6]} 12...
Bf6 {[%clk 0:04:02.6]} 13. c3 {[%clk 0:03:48.1]} 13... d5 {[%clk 0:04:01.5]} 14.
Nxe6 {[%clk 0:03:46.9]} 14... fxe6 {[%clk 0:04:00.6]} 15. Bg3 {[%clk 0:03:38.2]}
15... Rad8 {[%clk 0:03:40.8]} 16. Be2 {[%clk 0:03:37.3]} 16... d4 {[%clk
0:03:39.5]} 17. Bc4 {[%clk 0:03:32]} 17... dxc3 {[%clk 0:03:35.5]} 18. Qc2
{[%clk 0:03:26.2]} 18... Nb4 {[%clk 0:03:25.4]} 0-1

[Event "Live Chess"]
[Site "Chess.com"]
[Date "2023.05.21"]
[Round "-"]
[White "boilerboy1"]
[Black "Missedidea"]
[Result "0-1"]
[WhiteElo "1054"]
[BlackElo "1781"]
[TimeControl "300"]
[EndTime "8:50:45 PDT"]
[Termination "Missedidea won by resignation"]

1. e4 {[%clk 0:04:56.7]} 1... c5 {[%clk 0:04:58.6]} 2. c4 {[%clk 0:04:55]} 2...
g6 {[%clk 0:04:56.4]} 3. d3 {[%clk 0:04:53.8]} 3... Bg7 {[%clk 0:04:55.3]} 4.
Nc3 {[%clk 0:04:52.7]} 4... e6 {[%clk 0:04:52.6]} 5. Bd2 {[%clk 0:04:50.6]} 5...
Ne7 {[%clk 0:04:49.9]} 6. Nf3 {[%clk 0:04:49.7]} 6... d6 {[%clk 0:04:47.7]} 7.
Be2 {[%clk 0:04:48.1]} 7... O-O {[%clk 0:04:43.8]} 8. O-O {[%clk 0:04:43.4]}
8... Nbc6 {[%clk 0:04:42.1]} 9. Bg5 {[%clk 0:04:35.3]} 9... h6 {[%clk
0:04:37.7]} 10. Bh4 {[%clk 0:04:32.2]} 10... g5 {[%clk 0:04:33.9]} 11. Bg3
{[%clk 0:04:29.9]} 11... f5 {[%clk 0:04:28]} 12. exf5 {[%clk 0:04:27.9]} 12...
exf5 {[%clk 0:04:26.4]} 13. h3 {[%clk 0:04:23.1]} 13... f4 {[%clk 0:04:25.3]}
14. Bh2 {[%clk 0:04:20.7]} 14... Nf5 {[%clk 0:04:15.6]} 15. Rb1 {[%clk
0:04:01.6]} 15... Be6 {[%clk 0:04:08.2]} 16. Ne4 {[%clk 0:03:59.1]} 16... a6
{[%clk 0:03:48.3]} 17. a3 {[%clk 0:03:52.3]} 17... b5 {[%clk 0:03:41.9]} 18. b4
{[%clk 0:03:46.3]} 18... Qe7 {[%clk 0:03:23.6]} 19. bxc5 {[%clk 0:03:38.6]}
19... dxc5 {[%clk 0:03:18.4]} 20. cxb5 {[%clk 0:03:37.2]} 20... axb5 {[%clk
0:03:17.1]} 21. Rxb5 {[%clk 0:03:35.1]} 21... Ncd4 {[%clk 0:03:03.3]} 22. Nxd4
{[%clk 0:03:31.5]} 22... cxd4 {[%clk 0:02:57.3]} 23. Nc5 {[%clk 0:03:26]} 23...
Bd5 {[%clk 0:02:50.2]} 24. Bg4 {[%clk 0:03:17.8]} 24... Rxa3 {[%clk 0:02:43.3]}
25. Re1 {[%clk 0:03:01.6]} 25... Qa7 {[%clk 0:02:37.7]} 26. Bxf5 {[%clk
0:02:55.2]} 26... Rxf5 {[%clk 0:02:35]} 27. Re8+ {[%clk 0:02:52.6]} 27... Kh7
{[%clk 0:02:32.4]} 28. Rb1 {[%clk 0:01:50.4]} 28... Qxc5 {[%clk 0:02:19.3]} 29.
Rc1 {[%clk 0:01:37.6]} 29... Rc3 {[%clk 0:02:17.9]} 30. Rxc3 {[%clk 0:01:35.4]}
30... dxc3 {[%clk 0:02:15.4]} 31. Qc2 {[%clk 0:01:29]} 31... Re5 {[%clk
0:02:07.8]} 32. Rxe5 {[%clk 0:01:26.1]} 32... Bxe5 {[%clk 0:01:55.8]} 0-1

[Event "Live Chess"]
[Site "Chess.com"]
[Date "2023.05.21"]
[Round "-"]
[White "Ian-Morley"]
[Black "WelshTiger"]
[Result "0-1"]
[WhiteElo "1096"]
[BlackElo "2321"]
[TimeControl "300"]
[EndTime "8:50:55 PDT"]
[Termination "WelshTiger won by resignation"]

1. e4 {[%clk 0:04:58.7]} 1... c5 {[%clk 0:04:58.7]} 2. Nf3 {[%clk 0:04:57.4]}
2... d6 {[%clk 0:04:58.3]} 3. Bb5+ {[%clk 0:04:57]} 3... Bd7 {[%clk 0:04:56.5]}
4. Bxd7+ {[%clk 0:04:56.7]} 4... Nxd7 {[%clk 0:04:55.4]} 5. O-O {[%clk
0:04:56.5]} 5... Ngf6 {[%clk 0:04:53.7]} 6. Re1 {[%clk 0:04:56.2]} 6... e6
{[%clk 0:04:52]} 7. c3 {[%clk 0:04:56]} 7... Be7 {[%clk 0:04:51.4]} 8. d4 {[%clk
0:04:55.7]} 8... cxd4 {[%clk 0:04:50.8]} 9. cxd4 {[%clk 0:04:55.1]} 9... O-O
{[%clk 0:04:50.5]} 10. Nc3 {[%clk 0:04:54.5]} 10... Rc8 {[%clk 0:04:45.2]} 11.
e5 {[%clk 0:04:50.5]} 11... Nd5 {[%clk 0:04:38.3]} 12. Nxd5 {[%clk 0:04:48.9]}
12... exd5 {[%clk 0:04:37.8]} 13. exd6 {[%clk 0:04:48.2]} 13... Bxd6 {[%clk
0:04:36.9]} 14. Ne5 {[%clk 0:04:46.4]} 14... Nxe5 {[%clk 0:04:34]} 15. dxe5
{[%clk 0:04:45.5]} 15... Bc5 {[%clk 0:04:33.7]} 16. Be3 {[%clk 0:04:44]} 16...
Bxe3 {[%clk 0:04:32]} 17. Rxe3 {[%clk 0:04:41.7]} 17... Qd7 {[%clk 0:04:27.8]}
18. Qd2 {[%clk 0:04:28.7]} 18... Rfd8 {[%clk 0:04:24.8]} 19. Rd3 {[%clk
0:04:25]} 19... Qe6 {[%clk 0:04:22.1]} 20. Rc1 {[%clk 0:04:23.5]} 20... Rxc1+
{[%clk 0:04:19.1]} 21. Qxc1 {[%clk 0:04:22.6]} 21... Qxe5 {[%clk 0:04:18.6]} 22.
Rc3 {[%clk 0:04:18.4]} 22... h6 {[%clk 0:04:14.3]} 23. h3 {[%clk 0:04:12.6]}
23... d4 {[%clk 0:04:09.3]} 24. Rc8 {[%clk 0:04:08.7]} 24... Rxc8 {[%clk
0:04:06.2]} 25. Qxc8+ {[%clk 0:04:06.9]} 25... Kh7 {[%clk 0:04:05.8]} 26. g4
{[%clk 0:04:02.1]} 26... d3 {[%clk 0:04:01.9]} 27. Qf5+ {[%clk 0:04:00.7]} 27...
Qxf5 {[%clk 0:04:00.7]} 28. gxf5 {[%clk 0:03:58.5]} 28... d2 {[%clk 0:04:00.2]}
0-1

[Event "Live Chess"]
[Site "Chess.com"]
[Date "2023.05.21"]
[Round "-"]
[White "Bob2pen"]
[Black "jagbama"]
[Result "1-0"]
[WhiteElo "1889"]
[BlackElo "1199"]
[TimeControl "300"]
[EndTime "8:50:59 PDT"]
[Termination "Bob2pen won by checkmate"]

1. e4 {[%clk 0:04:56.5]} 1... e5 {[%clk 0:04:59.2]} 2. Nf3 {[%clk 0:04:55.6]}
2... Nc6 {[%clk 0:04:58.8]} 3. Bb5 {[%clk 0:04:54.3]} 3... Bc5 {[%clk
0:04:58.3]} 4. O-O {[%clk 0:04:53]} 4... Nf6 {[%clk 0:04:54.9]} 5. Nxe5 {[%clk
0:04:51.4]} 5... Nxe5 {[%clk 0:04:52.6]} 6. d4 {[%clk 0:04:50.5]} 6... Nxe4
{[%clk 0:04:43.3]} 7. Re1 {[%clk 0:04:40.2]} 7... Nd6 {[%clk 0:04:26.1]} 8.
Rxe5+ {[%clk 0:04:36.3]} 8... Kf8 {[%clk 0:04:10.7]} 9. Rxc5 {[%clk 0:04:33.2]}
9... Ne4 {[%clk 0:04:06.9]} 10. Re5 {[%clk 0:04:26.7]} 10... Qh4 {[%clk
0:04:01]} 11. Qe2 {[%clk 0:04:13.4]} 11... Nd6 {[%clk 0:03:38.9]} 12. c3 {[%clk
0:03:56.6]} 12... c6 {[%clk 0:03:25.7]} 13. Bg5 {[%clk 0:03:54.3]} 13... Qxg5
{[%clk 0:02:54.7]} 14. Rxg5 {[%clk 0:03:49.1]} 14... Nxb5 {[%clk 0:02:54.6]} 15.
Nd2 {[%clk 0:03:41.7]} 15... d5 {[%clk 0:02:53.5]} 16. Re1 {[%clk 0:03:40]}
16... Bd7 {[%clk 0:02:52.1]} 17. Qe7+ {[%clk 0:03:37.6]} 17... Kg8 {[%clk
0:02:48.9]} 18. Qxd7 {[%clk 0:03:36.4]} 18... h6 {[%clk 0:02:47.8]} 19. Rg3
{[%clk 0:03:28.2]} 19... Kh7 {[%clk 0:02:41.7]} 20. Qxf7 {[%clk 0:03:26.1]}
20... Rhf8 {[%clk 0:02:36.6]} 21. Qxg7# {[%clk 0:03:24.7]} 1-0

[Event "Live Chess"]
[Site "Chess.com"]
[Date "2023.05.21"]
[Round "-"]
[White "Tiltador"]
[Black "Olisingapore"]
[Result "0-1"]
[WhiteElo "934"]
[BlackElo "1801"]
[TimeControl "300"]
[EndTime "8:51:03 PDT"]
[Termination "Olisingapore won by checkmate"]

1. e4 {[%clk 0:04:57.8]} 1... e5 {[%clk 0:04:56.2]} 2. d3 {[%clk 0:04:56.9]}
2... d5 {[%clk 0:04:51.4]} 3. f3 {[%clk 0:04:55.4]} 3... Nf6 {[%clk 0:04:50.9]}
4. Be2 {[%clk 0:04:52.9]} 4... Nc6 {[%clk 0:04:47.7]} 5. Bg5 {[%clk 0:04:50.1]}
5... Bc5 {[%clk 0:04:46.7]} 6. Bxf6 {[%clk 0:04:45.4]} 6... Qxf6 {[%clk
0:04:45.3]} 7. Nc3 {[%clk 0:04:41.5]} 7... dxe4 {[%clk 0:04:43.3]} 8. Nxe4
{[%clk 0:04:39.9]} 8... Qe7 {[%clk 0:04:41.1]} 9. Nxc5 {[%clk 0:04:33.7]} 9...
Qxc5 {[%clk 0:04:40.5]} 10. Qd2 {[%clk 0:04:28.1]} 10... Nd4 {[%clk 0:04:38.2]}
11. O-O-O {[%clk 0:04:25.2]} 11... Be6 {[%clk 0:04:35.5]} 12. b3 {[%clk
0:04:22.9]} 12... Bxb3 {[%clk 0:04:14.8]} 13. axb3 {[%clk 0:04:18.3]} 13...
Nxb3+ {[%clk 0:04:12.5]} 14. Kb2 {[%clk 0:04:12.1]} 14... Nxd2 {[%clk
0:04:10.5]} 15. Rxd2 {[%clk 0:04:10.2]} 15... Qb4+ {[%clk 0:04:07.9]} 16. Kc1
{[%clk 0:04:09.1]} 16... O-O-O {[%clk 0:04:06]} 17. Nh3 {[%clk 0:04:05.8]} 17...
a5 {[%clk 0:04:05.3]} 18. Ng5 {[%clk 0:04:02.8]} 18... Rd7 {[%clk 0:04:01.9]}
19. Kd1 {[%clk 0:03:56.8]} 19... Qb1# {[%clk 0:03:59.3]} 0-1

[Event "Live Chess"]
[Site "Chess.com"]
[Date "2023.05.21"]
[Round "-"]
[White "Misha145Chess"]
[Black "CeladonFish"]
[Result "0-1"]
[WhiteElo "620"]
[BlackElo "1137"]
[TimeControl "300"]
[EndTime "8:51:08 PDT"]
[Termination "CeladonFish won by resignation"]

1. g4 {[%clk 0:04:57.1]} 1... Nf6 {[%clk 0:04:58.1]} 2. Bg2 {[%clk 0:04:57]}
2... Nxg4 {[%clk 0:04:56.1]} 3. e4 {[%clk 0:04:54.8]} 3... Nf6 {[%clk
0:04:54.1]} 4. e5 {[%clk 0:04:53.7]} 4... Ng8 {[%clk 0:04:44.6]} 5. d4 {[%clk
0:04:52.1]} 5... f6 {[%clk 0:04:41.8]} 6. exf6 {[%clk 0:04:51.3]} 6... Nxf6
{[%clk 0:04:40.9]} 7. d5 {[%clk 0:04:50.7]} 7... c6 {[%clk 0:04:37.8]} 8. Bg5
{[%clk 0:04:43.6]} 8... Qa5+ {[%clk 0:04:35.4]} 9. Nc3 {[%clk 0:04:37.6]} 9...
cxd5 {[%clk 0:04:32.7]} 10. Bxd5 {[%clk 0:04:33.2]} 10... e6 {[%clk 0:04:23.2]}
11. Bg2 {[%clk 0:04:26.9]} 11... Qxg5 {[%clk 0:04:22]} 12. h3 {[%clk 0:04:00.5]}
12... Qxg2 {[%clk 0:04:19.6]} 13. Rh2 {[%clk 0:03:59]} 13... Qxh2 {[%clk
0:04:18.2]} 0-1

[Event "Live Chess"]
[Site "Chess.com"]
[Date "2023.05.21"]
[Round "-"]
[White "Crowded_House"]
[Black "ZackirtyChess"]
[Result "1-0"]
[WhiteElo "1618"]
[BlackElo "1174"]
[TimeControl "300"]
[EndTime "8:51:16 PDT"]
[Termination "Crowded_House won by resignation"]

1. d4 {[%clk 0:04:59.4]} 1... f5 {[%clk 0:04:56.2]} 2. Bg5 {[%clk 0:04:58.2]}
2... h6 {[%clk 0:04:53]} 3. Bh4 {[%clk 0:04:54.9]} 3... Nf6 {[%clk 0:04:52.2]}
4. Bxf6 {[%clk 0:04:52.8]} 4... exf6 {[%clk 0:04:51]} 5. e3 {[%clk 0:04:52.3]}
5... Qe7 {[%clk 0:04:44.9]} 6. Bd3 {[%clk 0:04:50.8]} 6... g6 {[%clk 0:04:42.9]}
7. Nf3 {[%clk 0:04:47.5]} 7... Bg7 {[%clk 0:04:41]} 8. c3 {[%clk 0:04:45.7]}
8... O-O {[%clk 0:04:39.9]} 9. O-O {[%clk 0:04:44.6]} 9... d5 {[%clk 0:04:34.3]}
10. Nh4 {[%clk 0:04:43.2]} 10... g5 {[%clk 0:04:31.8]} 11. Nxf5 {[%clk
0:04:41.6]} 11... Bxf5 {[%clk 0:04:27.3]} 12. Bxf5 {[%clk 0:04:39.1]} 12... Nc6
{[%clk 0:04:25.6]} 13. Bc2 {[%clk 0:04:31.6]} 13... Rad8 {[%clk 0:04:13.9]} 14.
Qd3 {[%clk 0:04:25.8]} 14... Bh8 {[%clk 0:04:01.7]} 15. Qg6+ {[%clk 0:04:23]}
15... Qg7 {[%clk 0:03:59.8]} 16. Qxg7+ {[%clk 0:04:20.8]} 16... Bxg7 {[%clk
0:03:59]} 17. Nd2 {[%clk 0:04:12.1]} 17... f5 {[%clk 0:03:51]} 18. Rae1 {[%clk
0:03:59.5]} 18... Ne7 {[%clk 0:03:41.3]} 19. Nb3 {[%clk 0:03:58.6]} 19... f4
{[%clk 0:03:39.7]} 20. exf4 {[%clk 0:03:51.9]} 20... Rxf4 {[%clk 0:03:39.6]} 21.
Rxe7 {[%clk 0:03:47.9]} 21... Bf6 {[%clk 0:03:31.3]} 22. Re6 {[%clk 0:03:40.2]}
22... Re8 {[%clk 0:03:29.1]} 23. Rfe1 {[%clk 0:03:36.8]} 23... Kf7 {[%clk
0:03:29]} 24. Rxe8 {[%clk 0:03:35]} 1-0